fUSD/lending_fUSD_20260601
["ID","MTS","AMOUNT","RATE_DAILY","PERIOD"]
[423705284,1780318260000,-700.0,0.0003274,2]
[423705287,1780318260000,-700.0,0.0003274,2]
[423705285,1780318260000,-700.0,0.0003274,2]
[423705295,1780318260000,-700.0,0.0003274,2]
[423705291,1780318260000,-700.0,0.0003274,2]
[423705297,1780318260000,-700.0,0.0003274,2]
[423705307,1780318260000,-700.0,0.0003274,2]
[423705298,1780318260000,-700.0,0.0003274,2]
[423705300,1780318260000,-700.0,0.0003274,2]
[423705294,1780318260000,-700.0,0.0003274,2]
[423705301,1780318260000,-700.0,0.0003274,2]
[423705302,1780318260000,-700.0,0.0003274,2]
[423705308,1780318260000,-700.0,0.0003274,2]
[423705303,1780318260000,-700.0,0.0003274,2]
[423705305,1780318260000,-700.0,0.0003274,2]
[423705290,1780318260000,-700.0,0.0003274,2]
[423705296,1780318260000,-700.0,0.0003274,2]
[423705292,1780318260000,-700.0,0.0003274,2]
[423705268,1780318260000,-240.08,0.000327,8]
[423705289,1780318260000,-700.0,0.0003274,2]
[423705266,1780318260000,-930.99237409,0.00032678,2]
[423705304,1780318260000,-700.0,0.0003274,2]
[423705267,1780318260000,-1250.15,0.00032696,2]
[423705274,1780318260000,-1050.6217573,0.00032727,2]
[423705269,1780318260000,-508.670334,0.000327,8]
[423705270,1780318260000,-194.674,0.000327,27]
[423705272,1780318260000,-152.0,0.00032717,30]
[423705273,1780318260000,-1103.16807173,0.00032727,2]
[423705286,1780318260000,-700.0,0.0003274,2]
[423705271,1780318260000,-391.0,0.00032701,2]
[423705276,1780318260000,-1001.32091029,0.00032727,2]
[423705280,1780318260000,-700.0,0.0003274,2]
[423705279,1780318260000,-700.0,0.0003274,2]
[423705282,1780318260000,-700.0,0.0003274,2]
[423705283,1780318260000,-700.0,0.0003274,2]
[423705281,1780318260000,-700.0,0.0003274,2]
[423705278,1780318260000,-700.0,0.0003274,2]
[423705288,1780318260000,-700.0,0.0003274,2]
[423705275,1780318260000,-1144.29939525,0.00032727,2]
[423705306,1780318260000,-700.0,0.0003274,2]
[423705277,1780318260000,-939.77862108,0.00032727,2]
[423705309,1780318260000,-700.0,0.0003274,2]
[423705333,1780318260000,-533.0,0.00032764,30]
[423705339,1780318260000,-415.77861289,0.00032796,7]
[423705338,1780318260000,-508.31342869,0.00032796,7]
[423705334,1780318260000,-71823.2336286,0.00032777,2]
[423705335,1780318260000,-1465.73406139,0.00032777,2]
[423705336,1780318260000,-255.72229011,0.00032777,2]
[423705341,1780318260000,-559.04829397,0.00032847,14]
[423705342,1780318260000,-164.0,0.00032877,10]
[423705337,1780318260000,-151.0,0.00032777,2]
[423705343,1780318260000,-161.30129058,0.00032877,2]
[423705348,1780318260000,-500.0,0.00032877,2]
[423705345,1780318260000,-500.0,0.00032877,2]
[423705347,1780318260000,-500.0,0.00032877,2]
[423705346,1780318260000,-500.0,0.00032877,2]
[423705350,1780318260000,-423.5684792,0.00032877,2]
[423705349,1780318260000,-500.0,0.00032877,2]
[423705351,1780318260000,-500.0,0.00032877,10]
[423705312,1780318260000,-700.0,0.0003274,2]
[423705344,1780318260000,-1000.0,0.00032877,120]
[423705332,1780318260000,-1934.0,0.00032764,30]
[423705340,1780318260000,-4921.10333046,0.000328,2]
[423705326,1780318260000,-866.0,0.00032764,30]
[423705311,1780318260000,-700.0,0.0003274,2]
[423705331,1780318260000,-317.0,0.00032764,30]
[423705310,1780318260000,-700.0,0.0003274,2]
[423705313,1780318260000,-700.0,0.0003274,2]
[423705314,1780318260000,-700.0,0.0003274,2]
[423705315,1780318260000,-700.0,0.0003274,2]
[423705319,1780318260000,-700.0,0.0003274,2]
[423705317,1780318260000,-700.0,0.0003274,2]
[423705318,1780318260000,-700.0,0.0003274,2]
[423705322,1780318260000,-700.0,0.0003274,2]
[423705316,1780318260000,-700.0,0.0003274,2]
[423705324,1780318260000,-700.0,0.0003274,2]
[423705323,1780318260000,-700.0,0.0003274,2]
[423705321,1780318260000,-700.0,0.0003274,2]
[423705325,1780318260000,-700.0,0.0003274,2]
[423705327,1780318260000,-434.0,0.00032764,30]
[423705330,1780318260000,-421.0,0.00032764,30]
[423705329,1780318260000,-1755.0,0.00032764,30]
[423705320,1780318260000,-548.0,0.0003274,2]
[423705328,1780318260000,-1828.0,0.00032764,30]
[423705369,1780318261000,-1782.10610271,0.00033,3]
[423705368,1780318261000,-975.70908472,0.00033,7]
[423705367,1780318261000,-222.71,0.00033,14]
[423705365,1780318261000,-1250.15,0.00032958,2]
[423705364,1780318261000,-203.23553521,0.00032955,2]
[423705363,1780318261000,-404.45563422,0.00032955,2]
[423705362,1780318261000,-400.0,0.00032955,2]
[423705356,1780318261000,-500.0,0.00032955,2]
[423705359,1780318261000,-500.8,0.00032955,2]
[423705361,1780318261000,-400.0,0.00032955,2]
[423705355,1780318261000,-237.69,0.000329,120]
[423705357,1780318261000,-500.0,0.00032955,2]
[423705352,1780318261000,-500.0,0.00032877,10]
[423705353,1780318261000,-300.96172174,0.00032877,10]
[423705354,1780318261000,-169.77,0.000329,120]
[423705370,1780318261000,-1095.94246903,0.00033,30]
[423705358,1780318261000,-500.0,0.00032955,2]
[423705366,1780318261000,-150.0,0.00033,14]
[423705360,1780318261000,-400.0,0.00032955,2]
[423705372,1780318261000,-160.97697809,0.00033048,30]
[423705388,1780318261000,-150.0,0.00032562,2]
[423705389,1780318261000,-1234.14048746,0.00033267,30]
[423705390,1780318261000,-674.38761787,0.00018548,2]
[423705386,1780318261000,-150.0,0.00029534,2]
[423705387,1780318261000,-150.0,0.00031011,2]
[423705384,1780318261000,-4826.0,0.000332,14]
[423705383,1780318261000,-868.96,0.000332,30]
[423705385,1780318261000,-20553.41098462,0.00033267,30]
[423705381,1780318261000,-209.589666,0.000332,9]
[423705371,1780318261000,-705.0,0.00033011,8]
[423705380,1780318261000,-162.14,0.000332,9]
[423705378,1780318261000,-800.31,0.000331,30]
[423705379,1780318261000,-101567.0,0.00033133,30]
[423705377,1780318261000,-150.0,0.00033069,2]
[423705376,1780318261000,-397578.04880543,0.00033069,2]
[423705374,1780318261000,-101567.0,0.00033067,30]
[423705373,1780318261000,-164.030051,0.00033065,14]
[423705375,1780318261000,-671174.28429457,0.00033069,2]
[423705382,1780318261000,-101567.0,0.000332,30]
[423705391,1780318311000,195.34129291,9.53e-05,7]
[423705392,1780318312000,195.34129291,9.721e-05,7]
[423705393,1780318499000,-195.34129291,0.00010007,7]
[423705394,1780318512000,-500.0,0.00010193,2]
[423705395,1780318552000,-195.34129291,0.00010293,7]
[423705398,1780318566000,-150.0,0.00010294,2]
[423705400,1780318606000,-150.0,0.00010396,2]
[423705401,1780318619000,-150.0,0.00010498,2]
[423705402,1780318660000,-1200.0,0.00010582,2]
[423705403,1780318673000,-1230.09181537,0.00010582,2]
[423705404,1780318688000,-250.0,0.00010583,2]
[423705405,1780318701000,-2519.74863152,0.00010583,2]
[423705406,1780318714000,-322.51136848,0.00010583,2]
[423705407,1780318925000,500.0,0.00028999,120]
[423705408,1780318935000,300.0,0.00030137,120]
[423705410,1780318960000,300.0,0.00030137,120]
[423705411,1780319005000,150.74,0.00030082,120]
[423705415,1780319219000,-196.22357088,0.00010362,2]
[423705414,1780319219000,-170.72,0.00010142,2]
[423705416,1780319225000,500.0,0.00028999,120]
[423705417,1780319250000,-53.77642912,0.00010362,2]
[423705418,1780319263000,-150.0,0.00010503,2]
[423705419,1780319303000,-466.38921614,0.00010583,2]
[423705420,1780319356000,-2000.0,0.00010099,2]
[423705421,1780319357000,150.0,0.00030137,120]
[423705422,1780319410000,-200.0,0.00010126,2]
[423705435,1780319432000,-153.34340001,0.00010596,2]
[423705433,1780319432000,-200.0,0.00010126,7]
[423705437,1780319432000,-195.34129294,0.00010674,7]
[423705436,1780319432000,-166.66,0.00010636,2]
[423705439,1780319432000,-378.37381635,0.00010689,2]
[423705449,1780319432000,-5000.0,0.00010699,2]
[423705434,1780319432000,-200.0,0.00010126,2]
[423705443,1780319432000,-152.0,0.00010696,7]
[423705442,1780319432000,-1230.09181537,0.00010689,2]
[423705444,1780319432000,-419.04,0.00010699,2]
[423705447,1780319432000,-2500.0,0.00010699,2]
[423705451,1780319432000,-52439.84480128,0.00010699,2]
[423705453,1780319432000,-2507.99198305,0.00010699,2]
[423705456,1780319432000,-722.25,0.00010699,2]
[423705441,1780319432000,-197.63122671,0.00010689,2]
[423705461,1780319437000,-4517.35745798,0.000106,2]
[423705462,1780319437000,-1617.63162667,0.000106,2]
[423705463,1780319437000,-1236.6396886,0.000106,2]
[423705476,1780319438000,-500.0,0.00010698,2]
[423705475,1780319438000,-166.40352387,0.00010698,2]
[423705474,1780319438000,-500.0,0.00010698,2]
[423705473,1780319438000,-500.0,0.00010698,2]
[423705471,1780319438000,-500.0,0.00010698,2]
[423705479,1780319438000,-500.0,0.00010698,2]
[423705467,1780319438000,-186.14830582,0.00010698,2]
[423705470,1780319438000,-570.06826972,0.00010698,2]
[423705469,1780319438000,-500.0,0.00010698,2]
[423705466,1780319438000,-463.11268025,0.00010698,2]
[423705468,1780319438000,-500.0,0.00010698,2]
[423705465,1780319438000,-2987.36206374,0.000106,2]
[423705464,1780319438000,-1998.0724838,0.000106,2]
[423705472,1780319438000,-500.0,0.00010698,2]
[423705478,1780319438000,-500.0,0.00010698,2]
[423705486,1780319438000,-311.40263019,0.00010698,2]
[423705480,1780319438000,-500.0,0.00010698,2]
[423705477,1780319438000,-293.03863087,0.00010698,2]
[423705491,1780319438000,-500.0,0.00010698,2]
[423705490,1780319438000,-500.0,0.00010698,2]
[423705489,1780319438000,-500.0,0.00010698,2]
[423705492,1780319438000,-500.0,0.00010698,2]
[423705495,1780319438000,-3416.49701875,0.00010699,2]
[423705494,1780319438000,-500.0,0.00010698,2]
[423705488,1780319438000,-500.0,0.00010698,2]
[423705487,1780319438000,-500.0,0.00010698,2]
[423705484,1780319438000,-236.23435044,0.00010698,2]
[423705485,1780319438000,-500.0,0.00010698,2]
[423705483,1780319438000,-500.0,0.00010698,2]
[423705482,1780319438000,-500.0,0.00010698,2]
[423705493,1780319438000,-344.27760821,0.00010698,2]
[423705496,1780319439000,-1147.75004749,0.00010699,2]
[423705497,1780319439000,-688.8580236,0.00010699,2]
[423705499,1780319439000,-41540.84535716,0.00010699,2]
[423705500,1780319439000,-1144.40814843,0.00010699,2]
[423705501,1780319439000,-325.47403664,0.00010699,2]
[423705498,1780319439000,-21924.04837877,0.00010699,2]
[423705541,1780319440000,-1984.22864002,0.00013163,2]
[423705527,1780319440000,-251.84,0.00011979,2]
[423705535,1780319440000,-2000.0,0.00012624,2]
[423705533,1780319440000,-166.66,0.00012392,2]
[423705532,1780319440000,-150.74,0.00012329,2]
[423705531,1780319440000,-251.84,0.00012272,2]
[423705536,1780319440000,-209.21103511,0.00012786,2]
[423705538,1780319440000,-9098.01,0.00012893,2]
[423705537,1780319440000,-251.84,0.00012856,2]
[423705540,1780319440000,-164.57,0.00013002,2]
[423705539,1780319440000,-231.19,0.00012921,2]
[423705545,1780319440000,-250.0,0.0001338,2]
[423705561,1780319440000,-500.0,0.00013698,2]
[423705542,1780319440000,-215.65015035,0.00013287,2]
[423705546,1780319440000,-500.0,0.00013698,2]
[423705543,1780319440000,-160.0,0.00013287,2]
[423705548,1780319440000,-631.64150049,0.00013698,2]
[423705547,1780319440000,-574.57860626,0.00013698,2]
[423705549,1780319440000,-500.0,0.00013698,2]
[423705550,1780319440000,-273.16118467,0.00013698,2]
[423705551,1780319440000,-475.61764834,0.00013698,2]
[423705530,1780319440000,-158.34,0.00012124,2]
[423705552,1780319440000,-500.0,0.00013698,2]
[423705554,1780319440000,-500.0,0.00013698,2]
[423705544,1780319440000,-500.0,0.00013355,2]
[423705528,1780319440000,-166.66,0.00012041,2]
[423705520,1780319440000,-166.66,0.00011339,2]
[423705526,1780319440000,-1887.0,0.000119,2]
[423705506,1780319440000,-175.433,0.00010797,2]
[423705507,1780319440000,-400.0,0.00010799,2]
[423705502,1780319440000,-1374142.03220483,0.00010699,2]
[423705503,1780319440000,-3623.42,0.000107,2]
[423705508,1780319440000,-250.0,0.00010799,2]
[423705509,1780319440000,-2000.0,0.00010899,2]
[423705505,1780319440000,-2273.808,0.00010797,2]
[423705504,1780319440000,-150.0,0.0001071,2]
[423705511,1780319440000,-300.0,0.000109,2]
[423705510,1780319440000,-10000.0,0.00010899,2]
[423705512,1780319440000,-150.0,0.00010959,2]
[423705529,1780319440000,-162.49,0.00012124,2]
[423705514,1780319440000,-166.66,0.00010988,2]
[423705517,1780319440000,-1984.22864011,0.00011099,2]
[423705516,1780319440000,-500.0,0.00010998,2]
[423705518,1780319440000,-150.0,0.00011128,2]
[423705557,1780319440000,-163.43660373,0.00013698,2]
[423705515,1780319440000,-223.5,0.00010989,2]
[423705519,1780319440000,-250.0,0.00011139,2]
[423705521,1780319440000,-2000.0,0.00011361,2]
[423705522,1780319440000,-231.19,0.00011485,2]
[423705525,1780319440000,-166.66,0.0001169,2]
[423705523,1780319440000,-250.0,0.00011641,2]
[423705524,1780319440000,-251.84,0.00011687,2]
[423705513,1780319440000,-158.34,0.00010969,2]
[423705555,1780319440000,-500.0,0.00013698,2]
[423705534,1780319440000,-251.84,0.00012564,2]
[423705558,1780319440000,-500.0,0.00013698,2]
[423705587,1780319440000,-2072.17,0.00013698,2]
[423705588,1780319440000,-2072.17,0.00013698,2]
[423705589,1780319440000,-2072.17,0.00013698,2]
[423705590,1780319440000,-2072.17,0.00013698,2]
[423705591,1780319440000,-2072.17,0.00013698,2]
[423705595,1780319440000,-2072.17,0.00013698,2]
[423705592,1780319440000,-2072.17,0.00013698,2]
[423705594,1780319440000,-2072.17,0.00013698,2]
[423705593,1780319440000,-2072.17,0.00013698,2]
[423705599,1780319440000,-577.03,0.00013698,2]
[423705600,1780319440000,-577.03,0.00013698,2]
[423705596,1780319440000,-2072.17,0.00013698,2]
[423705597,1780319440000,-577.03,0.00013698,2]
[423705598,1780319440000,-577.03,0.00013698,2]
[423705603,1780319440000,-577.03,0.00013698,2]
[423705602,1780319440000,-577.03,0.00013698,2]
[423705607,1780319440000,-577.03,0.00013698,2]
[423705605,1780319440000,-577.03,0.00013698,2]
[423705609,1780319440000,-577.03,0.00013698,2]
[423705604,1780319440000,-577.03,0.00013698,2]
[423705606,1780319440000,-577.03,0.00013698,2]
[423705608,1780319440000,-577.03,0.00013698,2]
[423705611,1780319440000,-577.03,0.00013698,2]
[423705610,1780319440000,-577.03,0.00013698,2]
[423705560,1780319440000,-500.0,0.00013698,2]
[423705586,1780319440000,-2072.17,0.00013698,2]
[423705584,1780319440000,-2072.17,0.00013698,2]
[423705601,1780319440000,-577.03,0.00013698,2]
[423705585,1780319440000,-2072.17,0.00013698,2]
[423705553,1780319440000,-500.0,0.00013698,2]
[423705583,1780319440000,-2072.17,0.00013698,2]
[423705556,1780319440000,-500.0,0.00013698,2]
[423705559,1780319440000,-500.0,0.00013698,2]
[423705562,1780319440000,-500.0,0.00013698,2]
[423705564,1780319440000,-212.14997454,0.00013698,2]
[423705563,1780319440000,-500.0,0.00013698,2]
[423705567,1780319440000,-500.0,0.00013698,2]
[423705568,1780319440000,-500.0,0.00013698,2]
[423705569,1780319440000,-500.0,0.00013698,2]
[423705566,1780319440000,-500.0,0.00013698,2]
[423705572,1780319440000,-500.0,0.00013698,2]
[423705570,1780319440000,-500.0,0.00013698,2]
[423705565,1780319440000,-500.0,0.00013698,2]
[423705571,1780319440000,-500.0,0.00013698,2]
[423705581,1780319440000,-2072.17,0.00013698,2]
[423705582,1780319440000,-2072.17,0.00013698,2]
[423705578,1780319440000,-554.38885746,0.00013698,2]
[423705579,1780319440000,-2072.17,0.00013698,2]
[423705576,1780319440000,-500.0,0.00013698,2]
[423705580,1780319440000,-2072.17,0.00013698,2]
[423705574,1780319440000,-500.0,0.00013698,2]
[423705573,1780319440000,-484.95949939,0.00013698,2]
[423705575,1780319440000,-500.0,0.00013698,2]
[423705577,1780319440000,-500.0,0.00013698,2]
[423705644,1780319441000,-500.0,0.00013698,2]
[423705659,1780319441000,-500.0,0.00013698,2]
[423705652,1780319441000,-500.0,0.00013698,2]
[423705656,1780319441000,-500.0,0.00013698,2]
[423705654,1780319441000,-500.0,0.00013698,2]
[423705655,1780319441000,-500.0,0.00013698,2]
[423705650,1780319441000,-500.0,0.00013698,2]
[423705651,1780319441000,-500.0,0.00013698,2]
[423705649,1780319441000,-500.0,0.00013698,2]
[423705646,1780319441000,-500.0,0.00013698,2]
[423705648,1780319441000,-500.0,0.00013698,2]
[423705657,1780319441000,-500.0,0.00013698,2]
[423705658,1780319441000,-500.0,0.00013698,2]
[423705653,1780319441000,-327.92067223,0.00013698,2]
[423705671,1780319441000,-500.0,0.00013698,2]
[423705662,1780319441000,-500.0,0.00013698,2]
[423705661,1780319441000,-500.0,0.00013698,2]
[423705663,1780319441000,-500.0,0.00013698,2]
[423705664,1780319441000,-500.0,0.00013698,2]
[423705666,1780319441000,-500.0,0.00013698,2]
[423705668,1780319441000,-500.0,0.00013698,2]
[423705670,1780319441000,-500.0,0.00013698,2]
[423705669,1780319441000,-500.0,0.00013698,2]
[423705665,1780319441000,-500.0,0.00013698,2]
[423705667,1780319441000,-500.0,0.00013698,2]
[423705673,1780319441000,-500.0,0.00013698,2]
[423705647,1780319441000,-500.0,0.00013698,2]
[423705672,1780319441000,-500.0,0.00013698,2]
[423705660,1780319441000,-500.0,0.00013698,2]
[423705643,1780319441000,-500.0,0.00013698,2]
[423705616,1780319441000,-500.0,0.00013698,2]
[423705640,1780319441000,-500.0,0.00013698,2]
[423705674,1780319441000,-500.0,0.00013698,2]
[423705613,1780319441000,-577.03,0.00013698,2]
[423705612,1780319441000,-577.03,0.00013698,2]
[423705614,1780319441000,-577.03,0.00013698,2]
[423705615,1780319441000,-500.0,0.00013698,2]
[423705619,1780319441000,-500.0,0.00013698,2]
[423705621,1780319441000,-500.0,0.00013698,2]
[423705618,1780319441000,-500.0,0.00013698,2]
[423705617,1780319441000,-500.0,0.00013698,2]
[423705620,1780319441000,-500.0,0.00013698,2]
[423705623,1780319441000,-698.26,0.00013698,2]
[423705622,1780319441000,-698.26,0.00013698,2]
[423705624,1780319441000,-500.0,0.00013698,2]
[423705626,1780319441000,-500.0,0.00013698,2]
[423705625,1780319441000,-698.26,0.00013698,2]
[423705627,1780319441000,-698.26,0.00013698,2]
[423705628,1780319441000,-500.0,0.00013698,2]
[423705631,1780319441000,-500.0,0.00013698,2]
[423705633,1780319441000,-500.0,0.00013698,2]
[423705629,1780319441000,-698.26,0.00013698,2]
[423705630,1780319441000,-698.26,0.00013698,2]
[423705632,1780319441000,-698.26,0.00013698,2]
[423705634,1780319441000,-500.0,0.00013698,2]
[423705636,1780319441000,-500.0,0.00013698,2]
[423705635,1780319441000,-500.0,0.00013698,2]
[423705638,1780319441000,-500.0,0.00013698,2]
[423705639,1780319441000,-181.33557319,0.00013698,2]
[423705637,1780319441000,-500.0,0.00013698,2]
[423705641,1780319441000,-500.0,0.00013698,2]
[423705645,1780319441000,-500.0,0.00013698,2]
[423705675,1780319441000,-500.0,0.00013698,2]
[423705642,1780319441000,-500.0,0.00013698,2]
[423705678,1780319441000,-500.0,0.00013698,2]
[423705711,1780319441000,-990.95640937,0.00013699,2]
[423705709,1780319441000,-990.95640937,0.00013699,2]
[423705710,1780319441000,-990.95640937,0.00013699,2]
[423705715,1780319441000,-990.95640937,0.00013699,2]
[423705714,1780319441000,-990.95640937,0.00013699,2]
[423705725,1780319441000,-990.95640937,0.00013699,2]
[423705717,1780319441000,-990.95640937,0.00013699,2]
[423705724,1780319441000,-990.95640937,0.00013699,2]
[423705721,1780319441000,-990.95640937,0.00013699,2]
[423705726,1780319441000,-990.95640937,0.00013699,2]
[423705716,1780319441000,-990.95640937,0.00013699,2]
[423705718,1780319441000,-990.95640937,0.00013699,2]
[423705723,1780319441000,-990.95640937,0.00013699,2]
[423705720,1780319441000,-990.95640937,0.00013699,2]
[423705722,1780319441000,-990.95640937,0.00013699,2]
[423705719,1780319441000,-990.95640937,0.00013699,2]
[423705727,1780319441000,-990.95640937,0.00013699,2]
[423705728,1780319441000,-990.95640937,0.00013699,2]
[423705730,1780319441000,-990.95640937,0.00013699,2]
[423705729,1780319441000,-990.95640937,0.00013699,2]
[423705731,1780319441000,-990.95640937,0.00013699,2]
[423705736,1780319441000,-1900.0,0.000139,3]
[423705739,1780319441000,-2072.17,0.00013999,2]
[423705733,1780319441000,-163.49,0.000137,2]
[423705732,1780319441000,-990.95640937,0.00013699,2]
[423705737,1780319441000,-166.66,0.00013973,2]
[423705734,1780319441000,-166.66,0.00013836,2]
[423705738,1780319441000,-40182.55971291,0.0001399,2]
[423705676,1780319441000,-500.0,0.00013698,2]
[423705713,1780319441000,-990.95640937,0.00013699,2]
[423705703,1780319441000,-990.95640937,0.00013699,2]
[423705735,1780319441000,-2000.0,0.00013886,2]
[423705708,1780319441000,-990.95640937,0.00013699,2]
[423705706,1780319441000,-990.95640937,0.00013699,2]
[423705679,1780319441000,-380.90447041,0.00013698,2]
[423705681,1780319441000,-200.0,0.00013699,2]
[423705677,1780319441000,-500.0,0.00013698,2]
[423705685,1780319441000,-990.95640937,0.00013699,2]
[423705686,1780319441000,-990.95640937,0.00013699,2]
[423705683,1780319441000,-990.95640937,0.00013699,2]
[423705682,1780319441000,-150.99,0.00013699,2]
[423705684,1780319441000,-990.95640937,0.00013699,2]
[423705688,1780319441000,-990.95640937,0.00013699,2]
[423705687,1780319441000,-990.95640937,0.00013699,2]
[423705690,1780319441000,-990.95640937,0.00013699,2]
[423705700,1780319441000,-990.95640937,0.00013699,2]
[423705689,1780319441000,-990.95640937,0.00013699,2]
[423705696,1780319441000,-990.95640937,0.00013699,2]
[423705680,1780319441000,-166.66,0.00013699,2]
[423705692,1780319441000,-990.95640937,0.00013699,2]
[423705691,1780319441000,-990.95640937,0.00013699,2]
[423705705,1780319441000,-990.95640937,0.00013699,2]
[423705704,1780319441000,-990.95640937,0.00013699,2]
[423705740,1780319441000,-577.03,0.00013999,2]
[423705707,1780319441000,-990.95640937,0.00013699,2]
[423705702,1780319441000,-990.95640937,0.00013699,2]
[423705712,1780319441000,-990.95640937,0.00013699,2]
[423705699,1780319441000,-990.95640937,0.00013699,2]
[423705698,1780319441000,-990.95640937,0.00013699,2]
[423705697,1780319441000,-990.95640937,0.00013699,2]
[423705693,1780319441000,-990.95640937,0.00013699,2]
[423705695,1780319441000,-990.95640937,0.00013699,2]
[423705694,1780319441000,-990.95640937,0.00013699,2]
[423705701,1780319441000,-990.95640937,0.00013699,2]
[423705784,1780319442000,-200.0,0.000169,30]
[423705785,1780319442000,-200.0,0.000169,30]
[423705788,1780319442000,-1671.34147859,0.00016939,2]
[423705787,1780319442000,-1671.34147859,0.00016916,2]
[423705786,1780319442000,-245.58979122,0.000169,30]
[423705776,1780319442000,-1671.34147859,0.00016853,2]
[423705781,1780319442000,-200.0,0.000169,30]
[423705780,1780319442000,-1671.34147859,0.00016885,2]
[423705779,1780319442000,-1671.34147859,0.0001688,2]
[423705778,1780319442000,-1671.34147859,0.00016879,2]
[423705777,1780319442000,-1671.34147859,0.00016876,2]
[423705783,1780319442000,-200.0,0.000169,30]
[423705782,1780319442000,-200.0,0.000169,30]
[423705794,1780319442000,-1671.34147859,0.00017275,2]
[423705790,1780319442000,-1671.34147859,0.00017072,2]
[423705789,1780319442000,-1671.34147859,0.00017045,2]
[423705793,1780319442000,-231.19,0.00017228,2]
[423705792,1780319442000,-1671.34147859,0.00017172,2]
[423705795,1780319442000,-1671.34147859,0.00017315,2]
[423705796,1780319442000,-1671.34147859,0.00017331,2]
[423705797,1780319442000,-1671.34147859,0.00017341,2]
[423705798,1780319442000,-1671.34147859,0.000174,2]
[423705805,1780319442000,-1671.34147859,0.00017576,2]
[423705799,1780319442000,-1671.34147859,0.00017432,2]
[423705801,1780319442000,-1671.34147859,0.00017445,2]
[423705800,1780319442000,-1671.34147859,0.00017439,2]
[423705803,1780319442000,-1671.34147859,0.00017524,2]
[423705774,1780319442000,-1671.34147859,0.00016845,2]
[423705791,1780319442000,-1671.34147859,0.00017109,2]
[423705770,1780319442000,-1671.34147859,0.00016793,2]
[423705765,1780319442000,-1121.9,0.00016438,2]
[423705773,1780319442000,-1671.34147859,0.00016817,2]
[423705741,1780319442000,-250.0,0.00014,2]
[423705743,1780319442000,-166.66,0.00014247,2]
[423705742,1780319442000,-166.66,0.0001411,2]
[423705745,1780319442000,-166.66,0.00014384,2]
[423705751,1780319442000,-2072.2,0.00014864,2]
[423705747,1780319442000,-2072.17,0.00014864,2]
[423705749,1780319442000,-2072.17,0.00014864,2]
[423705744,1780319442000,-231.19,0.00014357,2]
[423705748,1780319442000,-2072.17,0.00014864,2]
[423705752,1780319442000,-577.03,0.00014864,2]
[423705750,1780319442000,-2072.17,0.00014864,2]
[423705746,1780319442000,-287.3,0.000146,2]
[423705753,1780319442000,-577.03,0.00014864,2]
[423705755,1780319442000,-577.03,0.00014864,2]
[423705760,1780319442000,-1984.22864002,0.00015626,2]
[423705758,1780319442000,-2000.0,0.00015149,2]
[423705766,1780319442000,-10000.0,0.00016446,2]
[423705754,1780319442000,-577.03,0.00014864,2]
[423705757,1780319442000,-5056.53,0.000149,3]
[423705756,1780319442000,-577.14584137,0.00014864,2]
[423705761,1780319442000,-249.62120719,0.00015729,2]
[423705762,1780319442000,-231.19,0.00015792,2]
[423705763,1780319442000,-300.0,0.00016,2]
[423705764,1780319442000,-487.03657759,0.00016161,2]
[423705767,1780319442000,-1671.34147859,0.00016743,2]